Workbook

Sheet Financials
B2: T12 | H2: Pro Forma
C3: Monthly | D3: Annually | E3: $/Unit | I3: Monthly | J3: Annually
B4: Property Taxes | C4: 3281 | D4: =C4*12 -> 39372 | E4: =D4/43 -> 915.627907 | H4: Gross Potential Rent | I4: 57747 | J4: =I4*12 -> 692964
B5: Payroll | C5: 2800 | D5: 33600 | E5: =D5/43 -> 781.3953488 | H5: Gain (Loss) to Lease | I5: -2900 | J5: =I5*12 -> -34800
B6: Utilities | C6: 5600 | D6: 67200 | E6: 1562.790698 | H6: Total Net Potential | I6: =I4+I5 -> 54847 | J6: =I6*12 -> 658164
B7: Legal & Professional | C7: 68 | D7: 816 | E7: 18.97674419 | H7: Vacancy | I7: 0.05
B8: Management | C8: 500 | D8: 6000 | E8: 139.5348837 | H8: Total # of units occupied | I8: 41
B9: Fire & Safety | C9: 180 | D9: 2160 | E9: 50.23255814 | H9: Total # of units | I9: 43
B10: R&M | C10: 1560 | D10: 18720 | E10: 435.3488372 | H10: Utilities & R&M- Total cost for occupied units only | I10: =(SUM(C6+C10)/C20)*I8 -> 7527.179487 | J10: =I10*12 -> 90326.15385
B11: Insurance | C11: 3200 | D11: 38400 | E11: 893.0232558 | H11: Remaining Expenses (Mostly Fixed Expenses) | I11: =SUM(C4:C5,C7,C8,C9,C11:C12) -> 10549 | J11: =I11*12 -> 126588
B12: Miscellaneous | C12: 520 | D12: =C12*12 -> 6240 | E12: 145.1162791 | H12: Total Expenses | I12: =SUM(I10:I11) -> 18076.17949 | J12: =SUM(J10:J11) -> 216914.1538
B13: Total Expenses | C13: =SUM(C4:C12) -> 17709 | D13: =SUM(D4:D12) -> 212508 | E13: =SUM(E4:E12) -> 4942.046512 | H13: NOI | I13: =SUM(I6-I12) -> 36770.82051 | J13: =SUM(J6-J12) -> 441249.8462
B16: Gross Potential Rent | C16: 57747 | D16: =C16*12 -> 692964
B17: Gain (Loss) to Lease | C17: -5800 | D17: =C17*12 -> -69600 | H17: Property Value at 6 cap | I17: 7300000
B18: Net Rental Income | C18: =C16+C17 -> 51947 | D18: =D16+D17 -> 623364
B19: Vacancy | C19: 0.91 | H19: Property Value at 7 cap | I19: 6250000
B20: Total # of units occupied | C20: 39
B21: Total # of units | C21: 43 | H21: Property Value at 8 cap | I21: 5500000
B22: Total Expenses | C22: =C13 -> 17709 | D22: =D13 -> 212508
B23: NOI | C23: =C18-C22 -> 34238 | D23: =D18-D22 -> 410856
B26: Property Value at 6 cap | C26: 6800000
B28: Property Value at 7 cap | C28: 5850000
B30: Property Value at 8 cap | C30: 5150000
